Cogmind - Beta 9.3 --- EXPLORER MODE // 2019.12.19 @ 14:42:40 // Winter2019/RPGLIKE Player: magnus Result: Destroyed by Y-45 Defender with Beam Rifle Performance ------------- Evolutions (1) 500 Regions Visited (3) 600 Robots Destroyed (17) 85 Value Destroyed (470) 470 Prototype IDs (0) 0 Alien Tech Used (0) 0 Bonus (0) 0 TOTAL SCORE: 1655 Bonus ------- None Cogmind --------- Core Integrity 0/600 Matter 31/300 Energy 125/125 System Corruption 0% Temperature Cool (9) Movement Walking (150) Ox1 Location -9/Storage Parts ------- > --- POWER (1) -------- Light Ion Engine > --- PROPULSION (1) --- Aluminum Leg > --- UTILITY (1) ------ Drone Bay (0/2) > --- WEAPON (1) ------- Grenade Launcher > --- INVENTORY (0) ---- (None) Peak State ------------ > --- POWER ------------ Light Ion Engine > --- PROPULSION ------- Aluminum Leg > --- UTILITY ---------- Drone Bay > --- WEAPON ----------- Grenade Launcher > --- INVENTORY -------- (None) [Rating: 8] Favorites ----------- Power Light Ion Engine Engine Light Ion Engine Propulsion Aluminum Leg Leg Aluminum Leg Utility Improved Targeting Computer Device Drone Bay Processor Improved Targeting Computer Weapon Assault Rifle Ballistic Gun Assault Rifle Launcher Grenade Launcher Build | -11 -10 -9 -9 ------- Run | Scr Mat Mat Sto Slots Evolved . | . . . . Power . | . . . . Propulsion . | . . . . Utility . | . . . . Weapon . | . . . . Parts Attached 8 | 4 2 . 2 Power 2 | 1 . . 1 Engine 2 | 1 . . 1 Core . | . . . . Reactor . | . . . . Propulsion 1 | 1 . . . Treads . | . . . . Leg 1 | 1 . . . Wheel . | . . . . Hover . | . . . . Flight . | . . . . Utility 3 | 1 1 . 1 Device 1 | . . . 1 Storage . | . . . . Processor 2 | 1 1 . . Hackware . | . . . . Protection . | . . . . Artifact . | . . . . Weapon 2 | 1 1 . . Energy Gun . | . . . . Energy Cannon . | . . . . Ballistic Gun 1 | 1 . . . Ballistic Cannon . | . . . . Launcher 1 | . 1 . . Special Weapon . | . . . . Impact Weapon . | . . . . Slashing Weapon . | . . . . Piercing Weapon . | . . . . Special Melee Weapon . | . . . . Unidentified Prototypes . | . . . . Parts Lost . | . . . . Power . | . . . . Propulsion . | . . . . Utility . | . . . . Weapon . | . . . . Highest Loss Streak . | . . . . Average Slot Usage (%) 99 | . 99 100 100 Engine 25 | . 25 25 25 Leg 25 | . 25 25 25 Device 1 | . . . 3 Processor 23 | . 25 25 21 Ballistic Gun 15 | . 23 . . Launcher 9 | . 1 25 25 Naked Turns . | . . . . Heaviest Build 12 | 5 6 6 12 Greatest Support 10 | 10 10 10 10 Greatest Overweight (x) 1 | 1 . . 1 Average Overweight (x) . | . . . . Largest Inventory Capacity . | . . . . Average Capacity . | . . . . Most Carried . | . . . . Average Carried . | . . . . Final Capacity . | . . . . Final Carried . | . . . . Class Distribution -------------------- 100% | Hacker-Mutant Dominant Class ---------------- Hacker-Mutant | -10/Materials Hacker-Mutant | -9/Materials Hacker-Mutant | -9/Storage Resources | -11 -10 -9 -9 ----------- Run | Scr Mat Mat Sto Matter Collected 331 | 230 73 . 28 Remotely . | . . . . Salvage Created 218 | . 71 . 147 Parts 28 | . 13 . 15 Haulers Intercepted 1 | . . . 1 Recyclers Shooed 2 | 1 . . 1 Parts Field Recycled . | . . . . Retrieved Matter . | . . . . Parts Self-Destructed . | . . . . Prevented . | . . . . Kills | -11 -10 -9 -9 ------- Run | Scr Mat Mat Sto Combat Hostiles Destroyed 13 | . 5 . 8 Guns 5 | . 5 . . AOE 8 | . . . 8 Classes Destroyed 7 | . 1 . 6 Worker 1 | . . . 1 Hauler 1 | . . . 1 Recycler 1 | . . . 1 Operator 1 | . . . 1 Swarmer 4 | . . . 4 Grunt 6 | . 5 . 1 Sentry 3 | . . . 3 Best Kill Streak 5 | . 3 . 5 Combat Bots Only 3 | . 3 . 3 Max Kills in Single Turn 2 | . 1 . 2 Gunslinging . | . . . . Exploded 1 | . . . 1 Melee . | . . . . Uniques/NPCs Destroyed . | . . . . Combat | -11 -10 -9 -9 -------- Run | Scr Mat Mat Sto Damage Taken 735 | 2 245 . 488 Core 601 | 1 203 . 397 Absorbed by Shields . | . . . . Redirected to Core 395 | 1 120 . 274 Core Remaining (%) 82 | 99 66 . . Volleys Fired 54 | . 28 . 26 Largest 1 | . 1 . 1 Hottest 30 | . 20 . 30 Shots Fired 54 | . 28 . 26 Gun 28 | . 28 . . Cannon . | . . . . Launcher 26 | . . . 26 Special . | . . . . Kinetic 28 | . 28 . . Thermal . | . . . . Explosive 26 | . . . 26 Electromagnetic . | . . . . Robot Hit Streak 24 | . 13 . 24 Robot Miss Streak 1 | . 1 . 1 Penetration Max . | . . . . Secondary Targets . | . . . . Shots Hit Robots 48 | . 26 . 22 Core Hits 42 | 1 14 . 27 Critical Hits . | . . . . Critical Kills . | . . . . Critical Parts Destroyed . | . . . . Melee Attacks . | . . . . Impact . | . . . . Slashing . | . . . . Piercing . | . . . . Sneak Attacks . | . . . . Combat Hostiles . | . . . . Follow-up Attacks . | . . . . Damage Inflicted 1328 | 8 320 . 1000 Guns 297 | . 297 . . Cannons . | . . . . Explosions 1000 | . . . 1000 Melee . | . . . . Ramming 31 | 8 23 . . Kinetic 297 | . 297 . . Thermal . | . . . . Explosive 1000 | . . . 1000 Electromagnetic . | . . . . Impact . | . . . . Slashing . | . . . . Piercing . | . . . . Highest Corruption . | . . . . Average Corruption . | . . . . Corruption Purged . | . . . . Overload Shots . | . . . . Overflow Damage 3 | . . . 3 Projectiles . | . . . . Explosions 3 | . . . 3 Melee . | . . . . Knockbacks . | . . . . Impact . | . . . . Kinetic . | . . . . Secondary . | . . . . Self-Inflicted Damage 50 | 2 7 . 41 Shots 6 | . . . 6 Rammed 5 | 1 4 . . Targets Rammed 7 | 2 5 . . Kicked 2 | 1 1 . . Crushed . | . . . . Highest Temperature 4 | . . . 4 Average Temperature 4 | . . . 4 Received Heat Transfer 360 | . 216 . 144 Siege Activations . | . . . . Robots Corrupted . | . . . . Combat Hostiles . | . . . . Parts Fried . | . . . . Impact Corruptions . | . . . . Robots Melted . | . . . . Combat Hostiles . | . . . . Parts Melted . | . . . . Heat Transferred . | . . . . Parts Sabotaged . | . . . . Parts Stolen . | . . . . Parts Stripped . | . . . . Power Chain Reactions . | . . . . Missiles Intercepted . | . . . . Alert | -11 -10 -9 -9 ------- Run | Scr Mat Mat Sto Peak Influence 203 | . 95 14 203 Average Influence 40 | . 35 14 64 Maximum Alert Level 1 | . . . 1 Low Security (%) 99 | 100 100 100 96 Level 1 . | . . . 3 Level 2 . | . . . . Level 3 . | . . . . Level 4 . | . . . . Level 5 . | . . . . High Security . | . . . . Max Security . | . . . . Squads Dispatched . | . . . . Investigation . | . . . . Extermination . | . . . . Reinforcement . | . . . . Assault . | . . . . Garrison . | . . . . Intercept . | . . . . Construction Impeded . | . . . . Haulers Reinforced . | . . . . Stealth | -11 -10 -9 -9 --------- Run | Scr Mat Mat Sto Distress Signals 1 | . 1 . . Communications Jammed . | . . . . Distress Signals . | . . . . Times Spotted 18 | . 7 . 11 Peak Tracking Total 4 | . 4 . 4 Tactical Retreats . | . . . . Traps | -11 -10 -9 -9 ------- Run | Scr Mat Mat Sto Traps Triggered 2 | . 1 . 1 Indirectly . | . . . . Trap Hack Attempts . | . . . . Triggered . | . . . . Disarmed . | . . . . Reprogrammed . | . . . . Reused . | . . . . Traps Extracted . | . . . . Installed . | . . . . Triggered . | . . . . Machines | -11 -10 -9 -9 ---------- Run | Scr Mat Mat Sto Machines Disabled 4 | . . . 4 Max in Single Turn 1 | . . . 1 Machines Sabotaged . | . . . . Garrisons Compromised . | . . . . Overloaded Fab Kills . | . . . . Fab Network Shutdowns . | . . . . Hacking | -11 -10 -9 -9 --------- Run | Scr Mat Mat Sto Machines Accessed 5 | . 2 . 3 Terminals 5 | . 2 . 3 Fabricators . | . . . . Repair Stations . | . . . . Recycling Units . | . . . . Scanalyzers . | . . . . Garrison Access . | . . . . Total Hacks 16 | . 9 . 7 Successful 14 | . 8 . 6 Failed 2 | . 1 . 1 Catastrophic . | . . . . Database Lockouts . | . . . . Manual . | . . . . Terminals 16 | . 9 . 7 Fabricators . | . . . . Repair Stations . | . . . . Recycling Units . | . . . . Scanalyzers . | . . . . Garrison Access . | . . . . Terminal Hacks 14 | . 8 . 6 Record 4 | . 2 . 2 Part Schematic 2 | . . . 2 Robot Analysis 1 | . 1 . . Open Door 1 | . . . 1 Alert Level 1 | . 1 . . Unreport Threat 1 | . . . 1 Locate Traps 1 | . 1 . . Dispatch Records 1 | . 1 . . Maintenance Status 1 | . 1 . . Hauler Manifests 1 | . 1 . . Fabricator Hacks . | . . . . Repair Station Hacks . | . . . . Recycling Unit Hacks . | . . . . Scanalyzer . | . . . . Garrison Access Hacks . | . . . . Unauthorized Hacks . | . . . . Terminals . | . . . . Fabricators . | . . . . Repair Stations . | . . . . Recycling Units . | . . . . Scanalyzers . | . . . . Garrison Access . | . . . . Data Cores Recovered 1 | . . . 1 Used . | . . . . Hacking Detections 4 | . 2 . 2 Full Trace Events . | . . . . Feedback Events . | . . . . Feedback Blocked . | . . . . Robot Schematics Acquired . | . . . . Robots Built . | . . . . Matter . | . . . . Time . | . . . . Total Robot Build Rating . | . . . . Part Schematics Acquired 2 | . . . 2 Parts Built . | . . . . Matter . | . . . . Time . | . . . . Total Part Build Rating . | . . . . Parts Repaired . | . . . . Time . | . . . . Parts Recycled . | . . . . Recycled Matter . | . . . . Retrieved Matter . | . . . . Retrieved Components . | . . . . Parts Scanalyzed . | . . . . Part Schematics Acquired . | . . . . Parts Damaged . | . . . . Bothacking | -11 -10 -9 -9 ------------ Run | Scr Mat Mat Sto Used RIF Installer . | . . . . Robots Hacked . | . . . . Non-combat . | . . . . Combat . | . . . . Robot Hacks Applied . | . . . . Relay Couplers Released . | . . . . Robots Rewired . | . . . . Allies Hacked . | . . . . Hacks Repelled . | . . . . Allies | -11 -10 -9 -9 -------- Run | Scr Mat Mat Sto Total Allies . | . . . . Largest Group . | . . . . Highest-Rated Group . | . . . . Highest-Rated Ally . | . . . . Total Orders . | . . . . Ally Attacks . | . . . . Total Damage . | . . . . Kills . | . . . . Allies Corrupted . | . . . . Allies Melted . | . . . . Intel | -11 -10 -9 -9 ------- Run | Scr Mat Mat Sto Robot Analysis Total 1 | . 1 . . Derelict Logs Recovered . | . . . . Drone Launches 2 | . . . 2 Drone Recoveries . | . . . . Exploration | -11 -10 -9 -9 ------------- Run | Scr Mat Mat Sto Turns Passed 860 | 77 521 9 253 Spaces Moved 614 | 76 373 8 157 Core 39 | 39 . . . Treads . | . . . . Legs 575 | 37 373 8 157 Wheels . | . . . . Hover . | . . . . Flight . | . . . . Fastest Speed 50 | 50 120 120 120 Average Speed 117 | 91 120 120 123 Slowest Speed 150 | 120 120 120 150 Overloaded Moves . | . . . . Propulsion Burnouts . | . . . . Robots Hopped . | . . . . Cave-ins Triggered . | . . . . Exploration Rate (%) 23 | 5 50 2 35 Regions Visited 3 Branch Regions 1 Pre-discovered Areas . | . . . . Known Exits Taken 3 | 1 1 1 . Unknown Exits Taken . | . . . . Scrap Searched . | . . . . Spaces Dug . | . . . . Terrain Destroyed 93 | . . . 93 Melee . | . . . . Projectile . | . . . . AOE 93 | . . . 93 Actions | -11 -10 -9 -9 --------- Run | Scr Mat Mat Sto Total 697 | 81 417 7 192 Wait 9 | . 9 . . Move 611 | 75 372 7 157 Hop . | . . . . Pick Up . | . . . . Fast Attach 6 | 4 1 . 1 Attach . | . . . . Detach . | . . . . Swap 2 | . 1 . 1 Drop 3 | . 1 . 2 Fire 54 | . 28 . 26 Melee . | . . . . Ram . | . . . . Kick 7 | 2 5 . . Crush . | . . . . Escape Stasis 5 | . . . 5 Rewire . | . . . . Trap . | . . . . Miscellaneous . | . . . . Route ------- -11/Scrapyard -10/Materials (discovered 2 exits: *Mat / *Min) -9/Materials -9/Storage (discovered 1 exit: *Mat) History --------- Turn | Location | Event 6 | -11/Scrapyard | Identified exit to Materials 6 | -11/Scrapyard | Discovered exit to Materials (range 15) 78 | -11/Scrapyard | Entered Materials 286 | -10/Materials | Identified exit to Mines 286 | -10/Materials | Discovered exit to Mines (range 15) 307 | -10/Materials | Build established: Hacker-Mutant 591 | -10/Materials | Identified exit to Materials 591 | -10/Materials | Discovered exit to Materials (range 5) 599 | -10/Materials | Entered another Materials area 599 | -9/Materials | Identified exit to Storage 599 | -9/Materials | Discovered exit to Storage (range 7) 601 | -9/Materials | Reached level 2 601 | -9/Materials | Reached level 3 608 | -9/Materials | Entered Storage 610 | -9/Storage | Reached level 4 652 | -9/Storage | Core integrity fell below 50% 786 | -9/Storage | Reached level 5 844 | -9/Storage | Core integrity fell below 20% 860 | -9/Storage | Identified exit to Materials 860 | -9/Storage | Discovered exit to Materials (range 23) 861 | -9/Storage | Destroyed by Y-45 Defender with Beam Rifle Last Messages --------------- 00798_ R-06 Scavenger collects Seismic Analyzer. 00800_ The unstable cave ceiling collapses. 00800_ R-06 Scavenger collects Lgt. Ion Engine. 00802_ R-06 Scavenger collects Lgt. Treads. 00808_ R-06 Scavenger collects Imp. Hover Unit. 00817_ Connecting with Terminal... >>Open Sealed Heavy Doors opened. 00822_ Discarded Imp. Targeting Computer. 00823_ Acquired Drone Bay. 00825_ Drone released from Drone Bay. 00835_ U-05 Engineer lays Concrete. 00836_ S-10 Pest destroyed. 00837_ U-05 Engineer lays Concrete. 00852_ The unstable cave ceiling collapses. 00852_ U-05 Engineer builds a Wall. 00853_ S-10 Pest destroyed. 00853_ Component Storage disabled. 00856_ U-05 Engineer builds a Door. 00860_ EXIT=FOUND: MATERIALS Map ----- +----------------------------------------------------+ | ?^??^???????????????????????????????# | | ???^???????#????????????????????????# | | ???????????? ???????????????????????## | | ???^^???????? ##+###??#+#????????????# | | ?????????????? #??# #????????????? | | ??????????????? #??# #????????????? | | ???????########## #??# #????####??### | | ???????# # #### #????#T"#??# | | ???????# # # ###### "#### | | ????????"""" # n | | ????????"""" ############# | | ???????#"""" # * #+######???????# | | ???????#"""" # % = #???????# | | ???????# """ #???????## | | ???????# ! """ #????????? | | ???????# """ """ #????????? | | ???????###### # #????????? | | ????????????# # #????????? | | ????????????## # #????????? | | ?????????????# # #+#########????????? | | ?????????????##### #???????????????? | | ?????#####???????## ##???????????????? | | ????## # ####?????# ########?????????? | | ????# ####### + #!!!!#?????????? | | ????# ## # #?????????? | | ????# @ # # !!!#?????????? | | ????# Y s #T######?????????? | | ????# Y ###??????????????? | | ????# ####????????????????? | | ????# = #???????????????? | | ????## ### ##???????????????? | | ?????# n#?#"" = ????????????????? | | ?????# r#?#"" % #???????????????? | | ?????# #?#" [ #???????????????? | | ?????# #?#" " #???????????????? | | ?????# #?#""" #???????????????? | | ?????# #?# ##???????????????? | | ?????# #?# #????????????????? | | ?????# #?##########????????????????? | | ?????# k???????????????????????????? | | ?????# a???????????????????????????? | | ?????# ???????????????????????????? | | ?????# #???????????????????????????? | | ?????# ????????????????????????????? | | ?????# ????????????????????????????? | | ?????# ????????????????????????????? | | ?????# ????????????????????????????? | | ?????? < ????????????????????????????? | | ?????? ????????????????????????????? | | ?????????????????????????????????????? | +----------------------------------------------------+ Best States ------------- Heat Dissipation 25 Energy Generation 10 Energy Capacity 125 Matter Stores 300 Matter Capacity 300 Sight Range 16 Terrain Scan Density 10 Resistance: KI 35 Resistance: TH 35 Resistance: EX 35 Resistance: EM 35 Resistance: I 35 Resistance: S 35 Resistance: P 35 Evasion (%) 50 Targeting Accuracy 6 Offensive Hacking 20 Item Schematics ----------------- Imp. Propulsion Shielding | -9/Storage | Hacked Adv. Assault Cannon | -9/Storage | Hacked Robot Schematics ------------------ None Fabricated ------------ Nothing Alien Tech Used ----------------- None Achievements -------------- None Challenges ------------ None RPGLIKE | -11 -10 -9 -9 --------- Run | Scr Mat Mat Sto Levels Raised 4 | . . 2 2 XP Earned 12326 | 6000 650 3292 2384 Upgrades . | . . . . Protomatter Created 214 | . 179 . 35 Protomatter Decayed 164 | . 129 . 35 Game ------ Seed WaveRecoilBeam Manual? 0 Play Time 00:19:31 Cumulative 9.7 hours Start 2019.12.19 @ 14:26:20 End 2019.12.19 @ 14:42:40 Sessions 1 Manual Loads 0 Difficulty Explorer Special Mode Winter2019/RPGLIKE Game No. 28 Rogue 27 Adventurer 0 Explorer 1 Win Type - Total 0 Types 0/0/0/0/0/0/0 Lore% 4 Gallery% 17 Achievement% 8 Wizard Run 0 Options --------- ASCII 0 Keyboard 0 Movement Arrows Keybinds 0 Fullscreen 1 Font 12/Smallcaps Map View 83x54 Tactical HUD 1 Map Filters NONE Filters NONE Steam 1 RUN: d9329b89-2ec3-4f39-8df7-4474e0e730bd